Cogmind - Beta 16.1 @@@ ROGUE MODE // 2026.04.10 @ 20:33:31 Player: Ammie Result: Destroyed by G-34 Mercenary with Small Laser Performance ------------- Evolutions (0) 0 Regions Visited (1) 200 Robots Destroyed (13) 65 Value Destroyed (236) 236 Prototype IDs (0) 0 Alien Tech Used (0) 0 Bonus (0) 0 TOTAL SCORE: 501 Bonus ------- None Cogmind --------- Core Integrity 0/250 Matter 216/300 Energy 233/250 System Corruption 0% Temperature Cool (6) Movement Walking (120) Location -10/Materials Parts ------- > --- POWER (1) -------- Ion Engine > --- PROPULSION (2) --- Aluminum Leg Aluminum Leg > --- UTILITY (2) ------ Heat Sink Medium Storage Unit > --- WEAPON (2) ------- Light Assault Rifle > --- INVENTORY (10) --- Ion Engine Light Ion Engine Aluminum Leg Aluminum Leg Small Storage Unit Peak State ------------ > --- POWER ------------ Ion Engine > --- PROPULSION ------- Aluminum Leg Aluminum Leg > --- UTILITY ---------- Heat Sink Small Storage Unit > --- WEAPON ----------- Assault Rifle Light Assault Rifle > --- INVENTORY -------- Light Ion Engine Aluminum Leg Aluminum Leg Aluminum Leg Light Assault Rifle [Rating: 7] Favorites ----------- Power Ion Engine Engine Ion Engine Propulsion Aluminum Leg Leg Aluminum Leg Utility Small Storage Unit Device Heat Sink Storage Small Storage Unit Weapon Light Assault Rifle Ballistic Gun Light Assault Rifle Build | -11 -10 ------- Run | Yrd Mat Slots Evolved . | . . Power . | . . Propulsion . | . . Utility . | . . Weapon . | . . Parts Attached 14 | 7 7 Power 2 | 1 1 Engine 2 | 1 1 Core . | . . Reactor . | . . Propulsion 5 | 2 3 Treads . | . . Leg 5 | 2 3 Wheel . | . . Hover . | . . Flight . | . . Utility 4 | 1 3 Device 1 | . 1 Storage 3 | 1 2 Processor . | . . Hackware . | . . Protection . | . . Artifact . | . . Weapon 3 | 3 . Energy Gun . | . . Energy Cannon . | . . Ballistic Gun 3 | 3 . Ballistic Cannon . | . . Launcher . | . . Special Weapon . | . . Impact Weapon . | . . Slashing Weapon . | . . Piercing Weapon . | . . Special Melee Weapon . | . . Unidentified Prototypes . | . . Parts Lost 4 | . 4 Power . | . . Propulsion 2 | . 2 Utility . | . . Weapon 2 | . 2 Highest Loss Streak 4 | . 4 To Critical Strikes . | . . Average Backups 4 | 1 4 Power 1 | . 1 Propulsion 1 | . 2 Utility . | . . Weapon . | . . Tool/Special . | . . Unused Backups 3 | . 3 Power 1 | . 1 Propulsion 2 | . 2 Utility . | . . Weapon . | . . Tool/Special . | . . Average Slot Usage (%) 87 | . 87 Engine 14 | . 14 Leg 26 | . 26 Device 4 | . 4 Storage 14 | . 14 Ballistic Gun 27 | . 27 Peak Build Rating 7 | 6 7 Average Rating 6 | 4 6 On Entrance 3 | . 6 Avg Prop Armor Cover (%) . | . . Naked Turns . | . . Heaviest Build 29 | 13 29 Greatest Support 20 | 20 20 Greatest Overweight (x) 5 | . 5 Average Overweight (x) . | . . Largest Inventory Capacity 15 | 8 15 Average Capacity 8 | 6 8 Most Carried 8 | 2 8 Average Carried 4 | 1 4 Final Capacity 10 | 8 10 Final Carried 5 | 2 5 Class Distribution -------------------- 100% | Mutant Dominant Class ---------------- Mutant | -10/Materials Resources | -11 -10 ----------- Run | Yrd Mat Matter Collected 451 | 246 205 Remotely . | . . Salvage Created 334 | . 334 Parts 31 | . 31 Haulers Intercepted . | . . Recyclers Shooed 1 | . 1 Parts Field Recycled . | . . Retrieved Matter . | . . Parts Self-Destructed . | . . Prevented . | . . Parts Restored . | . . Kills | -11 -10 ------- Run | Yrd Mat Combat Hostiles Destroyed 11 | . 11 Guns 11 | . 11 Classes Destroyed 4 | . 4 Worker 1 | . 1 Builder 1 | . 1 Swarmer 6 | . 6 Grunt 5 | . 5 Best Kill Streak 6 | . 6 Combat Bots Only 4 | . 4 Max Kills in Single Turn 2 | . 2 Gunslinging . | . . Exploded . | . . Melee . | . . Uniques/NPCs Destroyed . | . . Combat | -11 -10 -------- Run | Yrd Mat Hostile Shots Fired 120 | . 120 Missed 34 | . 34 Hits 86 | . 86 Projectile 86 | . 86 Damage Taken 906 | . 906 Core 253 | . 253 Absorbed by Shields . | . . Core Remaining (%) 100 | 100 . Volleys Fired 62 | . 62 Largest 2 | . 2 Hottest 40 | . 40 Shots Fired 115 | . 115 Gun 115 | . 115 Cannon . | . . Launcher . | . . Special . | . . Kinetic 115 | . 115 Thermal . | . . Explosive . | . . Electromagnetic . | . . Robot Hit Streak 4 | . 4 Robot Miss Streak 5 | . 5 Penetration Max . | . . Secondary Targets . | . . Shots Hit Robots 51 | . 51 Core Hits 23 | . 23 Critical Kills 2 | . 2 Critical Parts Destroyed 1 | . 1 Critical Strikes 3 | . 3 Destroy 3 | . 3 Melee Attacks . | . . Impact . | . . Slashing . | . . Piercing . | . . Sneak Attacks . | . . Combat Hostiles . | . . Follow-up Attacks . | . . Damage Inflicted 507 | . 507 Guns 495 | . 495 Cannons . | . . Explosions . | . . Melee . | . . Ramming 12 | . 12 Kinetic 495 | . 495 Thermal . | . . Explosive . | . . Electromagnetic . | . . Impact . | . . Slashing . | . . Piercing . | . . Highest Corruption . | . . Average Corruption . | . . Corruption Purged . | . . Corruption Blocked . | . . Overload Shots . | . . Overflow Damage . | . . Projectiles . | . . Explosions . | . . Melee . | . . Knockbacks . | . . Impact . | . . Kinetic . | . . Secondary . | . . Self-Inflicted Damage . | . . Shots . | . . Rammed . | . . Targets Rammed 2 | . 2 Kicked 2 | . 2 Crushed . | . . Highest Temperature 12 | . 12 Average Temperature 6 | . 6 Received Heat Transfer 306 | . 306 Siege Activations . | . . Martial Activations . | . . Shielding Activations . | . . Robots Disrupted . | . . Combat Hostiles . | . . Robots Corrupted . | . . Combat Hostiles . | . . Parts Fried . | . . Impact Corruptions . | . . Robots Melted . | . . Combat Hostiles . | . . Parts Melted . | . . Heat Transferred . | . . Parts Sabotaged . | . . Parts Stolen . | . . Parts Stripped . | . . Power Chain Reactions . | . . Alert | -11 -10 ------- Run | Yrd Mat Maximum Alert Level 1 | . 1 Low Security (%) 98 | 100 98 Level 1 1 | . 1 Level 2 . | . . Level 3 . | . . Level 4 . | . . Level 5 . | . . High Security . | . . Max Security . | . . Peak Influence 200 | . 200 Initial . | . . Average 73 | . 82 Influence Increases 395 | . 395 Destroy 0b10 Robot/C 220 | . 220 Destroy 0b10 Robot/NC 10 | . 10 Destroy Leader 60 | . 60 Lose Combat Pursuer 105 | . 105 Influence Decreases 206 | . 206 Time Decay 166 | . 166 Lost Part 40 | . 40 Squads Dispatched 5 | . 5 Investigation 2 | . 2 Extermination . | . . Reinforcement 3 | . 3 Assault . | . . Garrison . | . . Intercept . | . . Searches Triggered . | . . Construction Impeded . | . . Haulers Reinforced . | . . Active Scanning Responses . | . . Cargo Convoy Interrupts . | . . Stealth | -11 -10 --------- Run | Yrd Mat Distress Signals 1 | . 1 Communications Jammed . | . . Distress Signals . | . . Times Spotted 22 | . 22 Peak Tracking Total 7 | . 7 Tactical Retreats 3 | . 3 Traps | -11 -10 ------- Run | Yrd Mat Traps Triggered 1 | . 1 Indirectly . | . . Trap Hack Attempts . | . . Triggered . | . . Disarmed . | . . Reprogrammed . | . . Reused . | . . Traps Extracted . | . . Installed . | . . Triggered . | . . Machines | -11 -10 ---------- Run | Yrd Mat Machines Disabled . | . . Max in Single Turn . | . . Machines Repaired . | . . Machines Dismantled . | . . Machines Sabotaged . | . . Overloaded Fab Kills . | . . Hacking | -11 -10 --------- Run | Yrd Mat Machines Accessed 2 | . 2 Terminals 2 | . 2 Fabricators . | . . Repair Stations . | . . Recycling Units . | . . Scanalyzers . | . . Garrison Access . | . . Total Hacks 3 | . 3 Successful . | . . Failed 3 | . 3 Catastrophic 1 | . 1 Database Lockouts . | . . Manual . | . . Terminals 3 | . 3 Fabricators . | . . Repair Stations . | . . Recycling Units . | . . Scanalyzers . | . . Garrison Access . | . . Terminal Hacks . | . . Fabricator Hacks . | . . Repair Station Hacks . | . . Recycling Unit Hacks . | . . Scanalyzer . | . . Garrison Access Hacks . | . . Unauthorized Hacks . | . . Terminals . | . . Fabricators . | . . Repair Stations . | . . Recycling Units . | . . Scanalyzers . | . . Garrison Access . | . . Data Cores Recovered . | . . Used . | . . Hacking Detections 2 | . 2 Full Trace Events 1 | . 1 Feedback Events . | . . Feedback Blocked . | . . Robot Schematics Acquired . | . . Robots Built . | . . Authchips . | . . Time . | . . Total Robot Build Rating . | . . Part Schematics Acquired . | . . Parts Built . | . . Authchips . | . . Time . | . . Total Part Build Rating . | . . Part Studies Acquired . | . . Parts Repaired . | . . Time . | . . Parts Recycled . | . . Recycled Matter . | . . Retrieved Matter . | . . Retrieved Components . | . . Parts Scanalyzed . | . . Part Schematics Acquired . | . . Parts Damaged . | . . Bothacking | -11 -10 ------------ Run | Yrd Mat Used RIF Installer . | . . Robots Hacked . | . . Non-combat . | . . Combat . | . . Robot Hacks Applied . | . . Relay Couplers Released . | . . Fabnet Peak Effective % . | . . Robots Rewired . | . . Allies Hacked . | . . Hacks Repelled . | . . Allies | -11 -10 -------- Run | Yrd Mat Total Allies . | . . Largest Group . | . . Highest-Rated Group . | . . Highest-Rated Ally . | . . Total Orders . | . . Ally Attacks . | . . Total Damage . | . . Kills . | . . Allies Corrupted . | . . Allies Melted . | . . Intel | -11 -10 ------- Run | Yrd Mat Active Infowar (turns) . | . . Robot Analysis Total . | . . Derelict Logs Recovered . | . . Drone Launches . | . . Drone Recoveries . | . . Exploration | -11 -10 ------------- Run | Yrd Mat Turns Passed 472 | 50 422 Spaces Moved 227 | 34 193 Core 3 | 2 1 Treads . | . . Legs 224 | 32 192 Wheels . | . . Hover . | . . Flight . | . . Fastest Speed 50 | 50 120 Average Speed 122 | 115 123 Slowest Speed 300 | 120 300 Overloaded Moves . | . . Propulsion Burnouts . | . . Robots Hopped . | . . Potential Cave-ins . | . . Cave-ins Triggered . | . . Exploration Rate (%) 20 | 3 38 Regions Visited 1 Branch Regions . Pre-discovered Areas . | . . Known Exits Taken . | . . Unknown Exits Taken 1 | 1 . Scrap Searched . | . . Spaces Dug . | . . Terrain Destroyed . | . . Melee . | . . Projectile . | . . AOE . | . . Terrain Rammed . | . . Walls Destroyed . | . . Machines Disabled . | . . Actions | -11 -10 --------- Run | Yrd Mat Total 313 | 41 272 Wait 2 | . 2 Move 226 | 33 193 Hop . | . . Pick Up 5 | 1 4 Fast Attach 7 | 6 1 Attach 3 | . 3 Detach . | . . Swap 5 | 1 4 Drop 1 | . 1 Fire 62 | . 62 Melee . | . . Ram . | . . Kick 2 | . 2 Crush . | . . Escape Stasis . | . . Rewire . | . . Trap . | . . Miscellaneous . | . . Route ------- -11/Scrapyard -10/Materials (discovered 2 exits: [*Min x2]) History --------- Turn | Location | Event 19 | -11/Scrapyard | Discovered new exit (range 16) 51 | -11/Scrapyard | Entered Materials 256 | -10/Materials | Discovered new exit (range 8) 324 | -10/Materials | Build established: Mutant 398 | -10/Materials | Discovered new exit (range 8) 446 | -10/Materials | Core integrity fell below 50% 459 | -10/Materials | Core integrity fell below 20% 473 | -10/Materials | Destroyed by G-34 Mercenary with Small Laser Last Messages --------------- 00336_ Acquired 16 matter. 00337_ K-01 Serf collects debris. 00357_ Acquired Med. Storage Unit. 00360_ K-01 Serf collects debris. 00398_ EXIT=FOUND 00401_ W-16 Scout sends out distress signal. 00404_ Kicked R-06 Scavenger. 00408_ ALERT: Hostiles spotted, dispatching reinforcements to Terminal M003. 00420_ S-10 Pest suffers critical hit (Destroy). 00420_ S-10 Pest destroyed. 00426_ K-01 Serf collects debris. 00435_ Assault Rifle destroyed. 00449_ Aluminum Leg destroyed. 00455_ Lgt. Assault Rifle destroyed. 00458_ S-10 Pest destroyed. 00461_ Kicked S-10 Pest. 00463_ Aluminum Leg destroyed. 00465_ S-10 Pest destroyed. 00467_ Acquired 11 matter. Map ----- +----------------------------------------------------+ | ??????????????????????????####### #????# #???? | | ??????????????????????????# ! !#????# #???? | | ????????????????####+###### !#????# #???? | | ????????????????# + < !##????# ##### | | ????????????????# ## ####?????# # | | ????????????????# ## #????????# # """ | | ????????????????# ###=% ##????????# # """ | | ????????????????# #?# ! #?????????# # """ | | ????????????????# #?# =########### = + | | ????????????????# #?# %[# """ | | ????????????????# #?# % # "R | | ????????????????# #?# =# """ | | ???????????????#########+#?# ########### # | | ?????????????#""|"!????# #?# + #??# [##### | | ?????????????# "|"!"???# #?# # T #??# #???? | | ??????????? ## ### ### # #??#[ #???? | | ????????? #!= #??# = #???? | | ????????? < #!= #??# #???? | | ????????? g #!= #??# #???? | | ??????????#/## ####%#############??# #???? | | ?????????????########???# #??????????????# * #???? | | ????????????????????????#g#??????? ????#[ #?##? | | ????????????????????????#%#???????"""????# # #? | | ????????????????????????#=#????????""????# # # | | ????????????????????????# #???????? "????# =% # | | ????????????????????????#@#???????? ????# ! # ### | | ????????????????????????#[#??#+#??##/##??#| =###?? | | ??????????????????#######g#### #### #??# = #???? | | ??????????? t #??# #???? | | ??????????????????##+#### ######+## #??# #???? | | ????????????????????????# #??? # #??# #???? | | ????????????????????????# #??# # #### #???? | | ????????????????????????# #??# # #???? | | ????????????????????????# #??# # ##### ##???? | | ????????????????????????# #??# # #??? #???? | | ????????????????????????# #??#"" # #??? ##???? | | ????????????????????????# #??#"T # #???###????? | | ????????????????????????# #??#"" # #??????????? | | ????????????????????????# #??# # #??????????? | | ??????????????????????### ###??#### #??????????? | | ???????????????????##?# ####### #####??????? | | ???????????????????# # #??????? | | ????????????????????# " #??????? | | ????????????????????# # #??????? | | ????????????????????### ##########+######????? | | ??????????????????????### ###?????# #????? | | ???????????????????????# ???????# """"" #????? | | ???????????????????????# ##??????# ""T"" #????? | | ????????????????????????##????????# #????? | | ??????????????????????????????????# """ """ #????? | +----------------------------------------------------+ Best States ------------- Heat Dissipation 35 Energy Generation 10 Energy Capacity 250 Matter Stores 300 Matter Capacity 300 Sight Range 16 Terrain Scan Density 10 Evasion (%) 55 Item Schematics ----------------- None Robot Schematics ------------------ None Fabricated ------------ Nothing Repaired ---------- Nothing Studied --------- None Alien Tech Used ----------------- None Achievements -------------- None Challenges ------------ None Game ------ Seed DeliveryCannonPit Manual? 0 Play Time 00:07:17 Cumulative 50.5 hours Start 2026.04.10 @ 20:25:54 End 2026.04.10 @ 20:33:31 Sessions 1 Manual Loads 0 Difficulty Rogue Special Mode None Game No. 88 Rogue 88 Adventurer 0 Explorer 0 Win Type - Total 0 Types 0/0/0/0/0/0/0/0/0/0 Lore% 20 Gallery% 26 Achievement% 22 Wizard Run 0 Options --------- Layout 0 ASCII 0 Keyboard 0 Movement Mouse Keybinds 0 Fullscreen 1 Font 24/Smallcaps Map View 38x25 Zoom Use 95% Tactical HUD 1 Map Filters NONE Filters NONE Steam 1 RUN: 5a63756a-947f-42e7-98d8-a64ed9ebda41